[Event "Turkey IS Bank Super League 2017"]
[Site "Darica-Kocaeli"]
[Date "2017.07.26"]
[Round "1.16"]
[White "Ozbay, Ece"]
[Black "Gundogan, Sinem Cagla"]
[Result "1-0"]
[ECO "C68"]
[WhiteElo "1970"]
[BlackElo "2000"]
[Annotator "NA"]
[PlyCount "57"]
[EventType "team-tourn"]
[EventCountry "TUR"]
[SourceTitle "playchess.com"]
[Source "ChessBase"]
[SourceQuality "1"]
[TimeControl "40/5400+30:1800+30"]

1. e4 {[%emt 0:00:30] 71} e5 {[%emt 0:01:00] 71} 2. Nf3 {[%emt 0:07:30] 71} Nc6 {[%emt 0:00:30] 7} 3. Bb5 {[%emt 0:00:30] ]} a6 {[%emt 0:00:30] ]} 4. Bxc6 {[%emt 0:00:30] ]} dxc6 {[%emt 0:00:30]} 5. O-O {[%emt 0:00:00] ]} Bg4 {[%emt 0:00:30] ]} 6. h3 {[%emt 0:00:00] ]} h5 {[%emt 0:00:30]} 7. d3 {[%emt 0:00:00] ]} Qf6 {[%emt 0:00:30] ]} 8. Be3 {[%emt 0:00:00] ]} Bxf3 {[%emt 0:06:30]} 9. Qxf3 {[%emt 0:00:30] ]} Qxf3 {[%emt 0:00:30] ]} 10. gxf3 {[%emt 0:00:00] ]} O-O-O {[%emt 0:00:30] ]} 11. Nd2 {[%emt 0:03:00] ]} Bd6 {[%emt 0:08:30] ]} 12. Rfb1 {[%emt 0:10:30] ]} Ne7 {[%emt 0:17:30] ]} 13. b4 {[%emt 0:16:30] ]} f5 {[%emt 0:08:30] ]} 14. Nc4 {[%emt 0:02:30] ]} f4 {[%emt 0:00:30] ]} 15. Bc5 {[%emt 0:13:30] ]} g5 {[%emt 0:04:30] ]} 16. Kf1 {[%emt 0:08:30] ]} g4 {[%emt 0:15:30] ]} 17. hxg4 {[%emt 0:09:30] ]} hxg4 {[%emt 0:00:30] ]} 18. fxg4 {[%emt 0:01:30]} b5 {[%emt 0:01:30] ]} 19. Nd2 {[%emt 0:01:30] ]} Rdg8 {[%emt 0:01:30] ]} 20. Ke2 {[%emt 0:03:30] ]} Rxg4 {[%emt 0:00:30] ]} 21. Rg1 {[%emt 0:02:01] [%clk 0:16.16]} Rhg8 {[%emt 0:10:30] ]} 22. Rxg4 {[%emt 0:02:43] %} Rxg4 {[%emt 0:00:30] 6} 23. Nf3 {[%emt 0:00:30]} Ng6 {[%emt 0:00:30] 1} 24. Rh1 {[%emt 0:00:30]} Kd7 {[%emt 0:11:16]} 25. Rh7+ {[%emt 0:02:20]} Ke6 {[%emt 0:00:18]} 26. Bxd6 {[%emt 0:03:33]} Kxd6 {[%emt 0:00:30]} 27. c4 {[%emt 0:00:00]} Nf8 {[%emt 0:03:56]} 28. c5+ {[%emt 0:00:02]} Ke6 {[%emt 0:01:04]} 29. Rxc7 {[%emt 0:00:08] [%clk 0:13.02]} 1-0

[Event "Turkey IS Bank Super League 2017"]
[Site "Darica-Kocaeli"]
[Date "2017.07.26"]
[Round "1.20"]
[White "Soysal, Serkan"]
[Black "Kiremitciyan, Ari"]
[Result "1/2-1/2"]
[ECO "E57"]
[WhiteElo "2367"]
[BlackElo "2240"]
[Annotator "NA"]
[PlyCount "65"]
[EventType "team-tourn"]
[EventCountry "TUR"]
[SourceTitle "playchess.com"]
[Source "ChessBase"]
[SourceQuality "1"]
[TimeControl "40/5400+30:1800+30"]

1. Nf3 {[%emt 0:00:30] 49]%} c5 {[%emt 0:01:00] 49]%} 2. e3 {[%emt 0:00:30] 49]%} Nc6 {[%emt 0:04:30] 499} 3. d4 {[%emt 0:00:00] ]49} d5 {[%emt 0:02:30] ]49} 4. c4 {[%emt 0:02:00] ]49} cxd4 {[%emt 0:00:30] ]4} 5. cxd5 {[%emt 0:00:30] ]4} Qa5+ {[%emt 0:02:30] ]4} 6. Nbd2 {[%emt 0:15:30] ]} Qxd5 {[%emt 0:04:30] ]]} 7. Bc4 {[%emt 0:02:30] ]]} Qd8 {[%emt 0:04:30] ]]} 8. exd4 {[%emt 0:05:30] ]]} e6 {[%emt 0:04:30] ]]} 9. Ne4 {[%emt 0:05:30] ]]} Bb4+ {[%emt 0:04:30] ]]} 10. Nc3 {[%emt 0:01:30] ]]} Nf6 {[%emt 0:00:30] ]]} 11. O-O {[%emt 0:01:30] ]]} O-O {[%emt 0:00:30] ]} 12. Bg5 {[%emt 0:10:30] ]]} Be7 {[%emt 0:03:30] ]]} 13. a3 {[%emt 0:08:30] ]]} Nd5 {[%emt 0:12:30] ]]} 14. Bxd5 {[%emt 0:12:30] ]]} exd5 {[%emt 0:00:30] ]]} 15. Bxe7 {[%emt 0:00:30] ]} Nxe7 {[%emt 0:00:00] ]]} 16. Qb3 {[%emt 0:02:30] ]]} h6 {[%emt 0:07:00] ]]} 17. Rfe1 {[%emt 0:00:30] ]]} b6 {[%emt 0:01:30] ]]} 18. Rac1 {[%emt 0:04:30] ]]} a6 {[%emt 0:14:30] [%clk 0:22] ]59} 19. Ne2 {[%emt 0:14:57] kk} Bf5 {[%emt 0:19:01]} 20. Nf4 {[%emt 0:01:54]} Qd6 {[%emt 0:02:25] ]} 21. Ne5 {[%emt 0:06:04] [%clk 0:02.29] 6]} Rac8 {[%emt 0:07:29] c%} 22. h3 {[%emt 0:00:36]} Rxc1 {[%emt 0:00:30]} 23. Rxc1 {[%emt 0:00:30] [%clk 0:00.25]} Rc8 {[%emt 0:02:10]} 24. Rxc8+ {[%emt 0:02:34]} Bxc8 {[%emt 0:00:30]} 25. Qa4 {[%emt 0:00:30]} Kf8 {[%emt 0:00:30]} 26. Qc2 {[%emt 0:00:30]} Bf5 {[%emt 0:00:30]} 27. Qa4 {[%emt 0:00:30]} Bc8 {[%emt 0:00:30]} 28. Nfd3 {[%emt 0:00:30]} f6 {[%emt 0:00:30]} 29. Nf3 {[%emt 0:00:30]} a5 {[%emt 0:00:30]} 30. b4 {[%emt 0:00:30]} Bf5 {[%emt 0:00:30]} 31. Nde1 {[%emt 0:00:30]} axb4 {[%emt 0:00:30]} 32. axb4 {[%emt 0:00:30]} Kf7 {[%emt 0:00:30]} 33. b5 {[%emt 0:00:30]} 1/2-1/2

[Event "Turkey IS Bank Super League 2017"]
[Site "Darica-Kocaeli"]
[Date "2017.07.26"]
[Round "1.21"]
[White "Unuk, Laura"]
[Black "Isgandarova, Khayala"]
[Result "1-0"]
[ECO "A50"]
[WhiteElo "2343"]
[BlackElo "2257"]
[Annotator "NA"]
[PlyCount "58"]
[EventType "team-tourn"]
[EventCountry "TUR"]
[SourceTitle "playchess.com"]
[Source "ChessBase"]
[SourceQuality "1"]
[TimeControl "40/5400+30:1800+30"]

1. d4 {[%emt 0:00:30] 2.} Nf6 {[%emt 0:01:00] 2.} 2. c4 {[%emt 0:00:30] 2.} b6 {[%emt 0:00:30] 2.} 3. Nf3 {[%emt 0:00:30] 2.} Bb7 {[%emt 0:00:30] 2.} 4. g3 {[%emt 0:01:30] 2.} g6 {[%emt 0:00:30] 2} 5. Bg2 {[%emt 0:00:30] 22} Bg7 {[%emt 0:00:00] 22} 6. O-O {[%emt 0:06:30] 22} O-O {[%emt 0:00:00] 22} 7. Nc3 {[%emt 0:01:30] 22} Ne4 {[%emt 0:01:30] 22} 8. Bd2 {[%emt 0:01:30] 22} c5 {[%emt 0:08:30] 22} 9. e3 {[%emt 0:20:30] 22} d6 {[%emt 0:14:30] 22} 10. Rc1 {[%emt 0:00:30] 2} Na6 {[%emt 0:05:30] 22} 11. d5 {[%emt 0:08:30] 22} Nxd2 {[%emt 0:02:30] 22} 12. Nxd2 {[%emt 0:01:30] 22} Nc7 {[%emt 0:02:30] 22} 13. f4 {[%emt 0:01:30] 22} b5 {[%emt 0:07:30] 22} 14. cxb5 {[%emt 0:13:30] 22} Bxc3 {[%emt 0:17:30] 22} 15. bxc3 {[%emt 0:00:30] 22} Bxd5 {[%emt 0:00:30] 2} 16. e4 {[%emt 0:01:30] 22} Bb7 {[%emt 0:00:30] 22} 17. a4 {[%emt 0:00:30] 22} d5 {[%emt 0:04:30] 22} 18. Nb3 {[%emt 0:06:30] 22} Qd6 {[%emt 0:09:30] 22} 19. Na5 {[%emt 0:02:30] 2} Rab8 {[%emt 0:00:30] 22} 20. Nxb7 {[%emt 0:02:30] 22} Rxb7 {[%emt 0:00:30] 2} 21. exd5 {[%emt 0:00:30] ]} a5 {[%emt 0:03:28] [%clk 0:15.55]} 22. c4 {[%emt 0:07:30] 0} Na8 {[%emt 0:03:37] %%} 23. f5 {[%emt 0:00:30] 5]} Nb6 {[%emt 0:00:30]} 24. Rf4 {[%emt 0:00:30] 5} Rd7 {[%emt 0:02:53]} 25. Qd2 {[%emt 0:03:44]} Ra7 {[%emt 0:05:29]} 26. Rcf1 {[%emt 0:05:41]} Qe5 {[%emt 0:04:41]} 27. fxg6 {[%emt 0:00:30]} hxg6 {[%emt 0:00:04]} 28. Qf2 {[%emt 0:00:00] [%clk 0:10.54]} f6 {[%emt 0:04:35] c} 29. Qxc5 {[%emt 0:01:41]} Rb7 {[%emt 0:00:30] [%clk 0:00.02]} 1-0

[Event "Turkey IS Bank Super League 2017"]
[Site "Darica-Kocaeli"]
[Date "2017.07.26"]
[Round "1.22"]
[White "Yaran, Siar"]
[Black "Tirak, Mert"]
[Result "1-0"]
[ECO "A39"]
[WhiteElo "2253"]
[BlackElo "1909"]
[Annotator "NA"]
[PlyCount "59"]
[EventType "team-tourn"]
[EventCountry "TUR"]
[SourceTitle "playchess.com"]
[Source "ChessBase"]
[SourceQuality "1"]
[TimeControl "40/5400+30:1800+30"]

1. c4 {[%emt 0:00:30] 20]} c5 {[%emt 0:01:00] 20]} 2. Nc3 {[%emt 0:00:30] 20]} Nc6 {[%emt 0:00:30] 200} 3. g3 {[%emt 0:00:30] ]20} g6 {[%emt 0:00:30] ]20} 4. Bg2 {[%emt 0:00:30] ]2} Bg7 {[%emt 0:00:00] ]]} 5. Nf3 {[%emt 0:02:30] ]]} Nf6 {[%emt 0:01:00] ]]} 6. d4 {[%emt 0:00:30] ]]} cxd4 {[%emt 0:02:30] ]]} 7. Nxd4 {[%emt 0:00:30] ]]} O-O {[%emt 0:01:30] ]]} 8. O-O {[%emt 0:00:30] ]]} Qb6 {[%emt 0:06:30] ]]} 9. Nc2 {[%emt 0:02:30] ]]} d6 {[%emt 0:03:30] ]]} 10. b3 {[%emt 0:04:30] ]]} Qa5 {[%emt 0:19:30] ]]} 11. Qd2 {[%emt 0:18:30] ]]} Ng4 {[%emt 0:12:30] ]} 12. Bb2 {[%emt 0:04:30] ]]} Qh5 {[%emt 0:05:30] ]]} 13. h3 {[%emt 0:03:30] ]]} Nge5 {[%emt 0:04:30] ]]} 14. f4 {[%emt 0:04:30] ]]} Nd7 {[%emt 0:24:02]} 15. g4 {[%emt 0:12:30] ]]} Qc5+ {[%emt 0:03:00] ]} 16. Kh2 {[%emt 0:00:30] 8]]} Nf6 {[%emt 0:03:15] [%clk 0:04.41]} 17. Rad1 {[%emt 0:16:30] ]]} h5 {[%emt 0:05:02] c%c} 18. g5 {[%emt 0:01:30] 4]c} Ne8 {[%emt 0:03:12] ]} 19. Ne3 {[%emt 0:03:30] ]]]} a6 {[%emt 0:01:56] ]} 20. Ned5 {[%emt 0:01:30] 3]} e6 {[%emt 0:00:27]} 21. Ne4 {[%emt 0:02:32]} Qa5 {[%emt 0:00:31]} 22. Ndf6+ {[%emt 0:08:34] ]} Nxf6 {[%emt 0:00:32] [%clk 0:01.03]]} 23. Nxf6+ {[%emt 0:00:00] c%} Bxf6 {[%emt 0:00:00]} 24. Bxf6 {[%emt 0:00:00]} Qxd2 {[%emt 0:00:30]} 25. Rxd2 {[%emt 0:00:17]} d5 {[%emt 0:00:30]} 26. cxd5 {[%emt 0:00:30]} exd5 {[%emt 0:00:30] ]} 27. Bxd5 {[%emt 0:00:30] ]} Nd8 {[%emt 0:00:30] ]} 28. Bxd8 {[%emt 0:00:30] ]} Rxd8 {[%emt 0:00:30] ]} 29. Bxf7+ {[%emt 0:00:30] ]} Kxf7 {[%emt 0:00:30] ]} 30. Rxd8 {[%emt 0:00:30] ] [%clk 0:10:09]} 1-0

[Event "Turkey IS Bank Super League 2017"]
[Site "Darica-Kocaeli"]
[Date "2017.07.26"]
[Round "1.24"]
[White "Ayan, Bengu Sena"]
[Black "Ayazmali, Gizem"]
[Result "1-0"]
[ECO "E81"]
[WhiteElo "1862"]
[BlackElo "1849"]
[Annotator "NA"]
[PlyCount "69"]
[EventType "team-tourn"]
[EventCountry "TUR"]
[SourceTitle "playchess.com"]
[Source "ChessBase"]
[SourceQuality "1"]
[TimeControl "40/5400+30:1800+30"]

1. d4 {[%emt 0:00:30]} Nf6 {[%emt 0:01:00]} 2. c4 {[%emt 0:00:30]} g6 {[%emt 0:00:30]} 3. f3 {[%emt 0:00:30]} Bg7 {[%emt 0:00:30]} 4. e4 {[%emt 0:00:30]} d6 {[%emt 0:00:30]} 5. Nc3 {[%emt 0:00:30]} O-O {[%emt 0:00:30]} 6. Nge2 {[%emt 0:00:30]} Nbd7 {[%emt 0:00:30]} 7. Ng3 {[%emt 0:00:00]} c5 {[%emt 0:01:30]} 8. d5 {[%emt 0:00:00]} a6 {[%emt 0:08:30]} 9. Rb1 {[%emt 0:05:30]} Rb8 {[%emt 0:05:30]} 10. Be3 {[%emt 0:02:30]} Ne8 {[%emt 0:07:30]} 11. Qd2 {[%emt 0:06:30]} Ndf6 {[%emt 0:15:30]} 12. Be2 {[%emt 0:11:30]} Bd7 {[%emt 0:12:30]} 13. a4 {[%emt 0:04:30]} Nc7 {[%emt 0:14:30]} 14. b4 {[%emt 0:03:30]} b6 {[%emt 0:08:30]} 15. O-O {[%emt 0:01:30]} h5 {[%emt 0:04:47]} 16. Bg5 {[%emt 0:05:30] 3} cxb4 {[%emt 0:03:21]} 17. Rxb4 {[%emt 0:00:30] 2} a5 {[%emt 0:00:25]} 18. Rb2 {[%emt 0:07:30] 7} Na6 {[%emt 0:02:15]} 19. Bh6 {[%emt 0:02:30] 1} h4 {[%emt 0:03:26]} 20. Nh1 {[%emt 0:00:30] ]} Nc5 {[%emt 0:02:57]} 21. Bd1 {[%emt 0:04:30] 9} Kh7 {[%emt 0:01:42] [%clk 0:02.17]} 22. Bxg7 {[%emt 0:06:30]} Kxg7 {[%emt 0:02:50]} 23. Nf2 {[%emt 0:00:30]} Rh8 {[%emt 0:00:30]} 24. f4 {[%emt 0:00:30]} e6 {[%emt 0:00:30]} 25. e5 {[%emt 0:00:30]} dxe5 {[%emt 0:00:30]} 26. fxe5 {[%emt 0:00:30]} Nh5 {[%emt 0:00:30]} 27. Nfe4 {[%emt 0:01:30]} Nxe4 {[%emt 0:01:42]} 28. Nxe4 {[%emt 0:00:30]} exd5 {[%emt 0:00:32]} 29. cxd5 {[%emt 0:00:00]} Qe7 {[%emt 0:00:55]} 30. Qd4 {[%emt 0:03:00]} Bf5 {[%emt 0:00:35]} 31. Nd6 {[%emt 0:01:30]} Qg5 {[%emt 0:00:30]} 32. e6+ {[%emt 0:03:30]} f6 {[%emt 0:00:25]} 33. Nf7 {[%emt 0:02:30]} Qc1 {[%emt 0:00:27]} 34. Nxh8 {[%emt 0:00:30]} Rxh8 {[%emt 0:00:27]} 35. Bxh5 {[%emt 0:00:30]} 1-0

[Event "Turkey IS Bank Super League 2017"]
[Site "Darica-Kocaeli"]
[Date "2017.07.26"]
[Round "1.27"]
[White "Uzumcu, Ahmet Utku"]
[Black "Selbes, Tarik"]
[Result "1-0"]
[ECO "B08"]
[WhiteElo "2223"]
[BlackElo "2260"]
[Annotator "NA"]
[PlyCount "133"]
[EventType "team-tourn"]
[EventCountry "TUR"]
[SourceTitle "playchess.com"]
[Source "ChessBase"]
[SourceQuality "1"]
[TimeControl "40/5400+30:1800+30"]

1. e4 {[%emt 0:00:30] .9]} d6 {[%emt 0:01:00] .9]} 2. d4 {[%emt 0:00:30] .9]} Nf6 {[%emt 0:00:30] .9} 3. Nc3 {[%emt 0:00:30] .99} g6 {[%emt 0:00:30] .99} 4. Nf3 {[%emt 0:01:30] .99} Bg7 {[%emt 0:00:00] .99} 5. Be2 {[%emt 0:00:30] ..9} Nc6 {[%emt 0:00:00] ..9} 6. h3 {[%emt 0:01:30] ..} O-O {[%emt 0:00:30] ...} 7. O-O {[%emt 0:00:30] ...} a6 {[%emt 0:01:30] ...} 8. d5 {[%emt 0:03:30] ...} Nb8 {[%emt 0:01:30] ...} 9. a4 {[%emt 0:03:30] ...} a5 {[%emt 0:00:30] ...} 10. Be3 {[%emt 0:00:30] ....} c6 {[%emt 0:00:30] ....} 11. dxc6 {[%emt 0:04:30] ...} Nxc6 {[%emt 0:01:30] ....} 12. Nd4 {[%emt 0:03:30] ...} Bd7 {[%emt 0:00:30] ...} 13. Ndb5 {[%emt 0:05:30] ...} Nb4 {[%emt 0:04:30] ...} 14. f4 {[%emt 0:05:30] ...} Bc6 {[%emt 0:01:30] ...} 15. Bf3 {[%emt 0:01:30] ....} d5 {[%emt 0:01:30] ....} 16. e5 {[%emt 0:01:30] ....} Ne4 {[%emt 0:00:30] ....} 17. Ne2 {[%emt 0:01:30] ....} f6 {[%emt 0:18:30] ....} 18. c3 {[%emt 0:03:30] ....} Na6 {[%emt 0:00:30] ...} 19. Ned4 {[%emt 0:01:30] ...} Qc8 {[%emt 0:22:30] ..} 20. Na7 {[%emt 0:04:30] ...} Rxa7 {[%emt 0:09:30] ...} 21. Nxc6 {[%emt 0:00:30] ...} bxc6 {[%emt 0:02:30] ...} 22. Bxa7 {[%emt 0:01:30] ...} Ng3 {[%emt 0:01:30] ...} 23. Re1 {[%emt 0:01:30] ]..} fxe5 {[%emt 0:00:30] ]].} 24. fxe5 {[%emt 0:00:30] ]].} Qc7 {[%emt 0:01:30] ]]} 25. Bf2 {[%emt 0:02:30] ]]]} Nf5 {[%emt 0:01:30] ]]]} 26. Qe2 {[%emt 0:03:30] ]]]} Nb8 {[%emt 0:01:30] ]]]} 27. g4 {[%emt 0:04:30] ]]]} Nh6 {[%emt 0:00:30] ]]]} 28. Bg2 {[%emt 0:00:00] ]]]} e6 {[%emt 0:02:30] ]]]]} 29. Bc5 {[%emt 0:02:00] ]]]]} Rd8 {[%emt 0:00:30] ]]]]} 30. Qf2 {[%emt 0:04:30] ]]]]} Nd7 {[%emt 0:00:30] ]]]} 31. Bd6 {[%emt 0:01:30] ]]]} Qb7 {[%emt 0:00:30] ]]} 32. Rf1 {[%emt 0:04:30] ]]]} Nb6 {[%emt 0:00:30] ]]]} 33. b3 {[%emt 0:03:30] [%clk 0:27]001} Nc8 {[%emt 0:05:34] kk} 34. Bc5 {[%emt 0:03:30] 6]} Nf7 {[%emt 0:00:30] kk} 35. Rae1 {[%emt 0:00:30] 6]} Nxe5 {[%emt 0:00:30] kkk} 36. Qe3 {[%emt 0:03:30] 56]k} Nd6 {[%emt 0:01:00] ]]} 37. Bd4 {[%emt 0:01:30] ]]]} Ndf7 {[%emt 0:00:44] ]} 38. Qg3 {[%emt 0:00:30] 2]]} Qb8 {[%emt 0:01:15] ]} 39. Re3 {[%emt 0:01:30] 7 [%clk 0:49:0] 11} g5 {[%emt 0:16:31] ccl} 40. h4 {[%emt 0:00:00] 6] [%clk 0:48:0] 1} gxh4 {[%emt 0:08:56]} 41. Qxh4 {[%emt 0:05:00]} Ng6 {[%emt 0:00:30]} 42. Qf2 {[%emt 0:00:30]} Nfe5 {[%emt 0:00:30] [%clk 0:19.39]} 43. Qg3 {[%emt 0:03:30]} c5 {[%emt 0:13:01]} 44. Bxc5 {[%emt 0:01:30]} Qxb3 {[%emt 0:03:16]} 45. Bd4 {[%emt 0:05:30]} Qb8 {[%emt 0:01:45]} 46. Rfe1 {[%emt 0:01:30]} Nc4 {[%emt 0:04:41]} 47. Qxb8 {[%emt 0:02:30]} Rxb8 {[%emt 0:00:01]} 48. Rxe6 {[%emt 0:01:30]} Nf4 {[%emt 0:00:30]} 49. Re8+ {[%emt 0:00:30]} Rxe8 {[%emt 0:00:00]} 50. Rxe8+ {[%emt 0:00:30]} Kf7 {[%emt 0:00:26]} 51. Rd8 {[%emt 0:00:00]} Ne2+ {[%emt 0:03:02]} 52. Kf2 {[%emt 0:01:00]} Nxd4 {[%emt 0:00:22]} 53. Bxd5+ {[%emt 0:02:30]} Ke7 {[%emt 0:00:34]} 54. Rg8 {[%emt 0:00:30]} Bf6 {[%emt 0:00:39]} 55. Bxc4 {[%emt 0:00:00]} Nc6 {[%emt 0:00:00]} 56. Bb5 {[%emt 0:01:00]} Ne5 {[%emt 0:00:51]} 57. Kg3 {[%emt 0:01:30]} Ng6 {[%emt 0:00:48]} 58. Rc8 {[%emt 0:00:30]} Kd6 {[%emt 0:00:30]} 59. Rc6+ {[%emt 0:00:30]} Ke7 {[%emt 0:00:26]} 60. c4 {[%emt 0:00:30]} h6 {[%emt 0:00:30]} 61. Ra6 {[%emt 0:00:30]} Ne5 {[%emt 0:00:30]} 62. Rxa5 {[%emt 0:00:30]} Nd3 {[%emt 0:00:30]} 63. Ra7+ {[%emt 0:00:00]} Kf8 {[%emt 0:01:52]} 64. a5 {[%emt 0:00:00]} Nc5 {[%emt 0:00:17]} 65. a6 {[%emt 0:00:30]} Bd4 {[%emt 0:00:00]} 66. Ra8+ {[%emt 0:00:30]} Ke7 {[%emt 0:00:00]} 67. a7 {[%emt 0:00:30]} 1-0

[Event "Turkey IS Bank Super League 2017"]
[Site "Darica-Kocaeli"]
[Date "2017.07.26"]
[Round "1.30"]
[White "Samani, Yamac"]
[Black "Yazici, Ugur Doga"]
[Result "1/2-1/2"]
[ECO "C55"]
[WhiteElo "2263"]
[BlackElo "2144"]
[Annotator "NA"]
[PlyCount "114"]
[EventType "team-tourn"]
[EventCountry "TUR"]
[SourceTitle "playchess.com"]
[Source "ChessBase"]
[SourceQuality "1"]
[TimeControl "40/5400+30:1800+30"]

1. e4 {[%emt 0:00:30] 831]} e5 {[%emt 0:01:00] 831]} 2. Nf3 {[%emt 0:00:30] 831]} Nc6 {[%emt 0:00:30] 8331} 3. Bc4 {[%emt 0:00:30] ]831} Nf6 {[%emt 0:00:30] ]831} 4. d3 {[%emt 0:00:30] ]81} Be7 {[%emt 0:00:30] ]]8} 5. O-O {[%emt 0:00:30] ]]8} O-O {[%emt 0:00:30] ]]8} 6. Re1 {[%emt 0:00:00] ]]8} d6 {[%emt 0:00:00] ]]8} 7. a4 {[%emt 0:01:00] ]]8} Be6 {[%emt 0:00:00] ]]8} 8. Nc3 {[%emt 0:01:30] ]]8} Qd7 {[%emt 0:06:30] ]]8} 9. a5 {[%emt 0:00:30] ]]8} Bg4 {[%emt 0:02:30] ]]} 10. a6 {[%emt 0:20:30] ]]]} bxa6 {[%emt 0:04:30] ]]]} 11. h3 {[%emt 0:04:30] ]]]} Bh5 {[%emt 0:07:30] ]]]} 12. Nb1 {[%emt 0:03:30] ]]]} Rfe8 {[%emt 0:17:30] ]]]} 13. Nbd2 {[%emt 0:02:30] ]]} Nd8 {[%emt 0:10:30] ]]]} 14. Nf1 {[%emt 0:11:30] ]]]} c6 {[%emt 0:04:30] ]]]} 15. Ng3 {[%emt 0:05:30] ]]]} Bg6 {[%emt 0:00:30] ]]]} 16. Rxa6 {[%emt 0:02:30] ]]]} Rb8 {[%emt 0:02:30] ]]]} 17. Be3 {[%emt 0:08:30] ]]]]} c5 {[%emt 0:07:30] ]]]} 18. Qa1 {[%emt 0:04:30] ]]]} Qb7 {[%emt 0:02:30] ]]]} 19. b3 {[%emt 0:08:30] ]]]} Nc6 {[%emt 0:01:30] ]]]} 20. Bg5 {[%emt 0:02:30] [%clk 0:17.00] ]]]} Bd8 {[%emt 0:11:28] lk} 21. Bxf6 {[%emt 0:03:30] lk} gxf6 {[%emt 0:00:30] l} 22. Bd5 {[%emt 0:00:30] ]} Bb6 {[%emt 0:00:30] ]} 23. Nh4 {[%emt 0:02:44] ]} Qc7 {[%emt 0:02:06] ]} 24. Bxc6 {[%emt 0:02:30] ]} Qxc6 {[%emt 0:00:01] ]]} 25. Ngf5 {[%emt 0:04:16] ]]} Re6 {[%emt 0:01:31] ]]} 26. Qc1 {[%emt 0:02:19] ]]} Kh8 {[%emt 0:01:15] ]]} 27. Qh6 {[%emt 0:02:43] ]]} Rg8 {[%emt 0:00:06] ]]} 28. c4 {[%emt 0:01:13] ]]} Qc8 {[%emt 0:01:18] ]]} 29. Rea1 {[%emt 0:01:11] [%clk 0:03.14]]} Qd8 {[%emt 0:04:27] [[c} 30. Qd2 {[%emt 0:00:50] [[c} Qf8 {[%emt 0:00:30] [[c} 31. Kh2 {[%emt 0:00:30] [[} Re8 {[%emt 0:00:30] [[[} 32. Rf1 {[%emt 0:00:30] [%clk 0:02.29]} Re6 {[%emt 0:04:19] c} 33. Kh1 {[%emt 0:01:15]} Qc8 {[%emt 0:00:30]} 34. Ra2 {[%emt 0:00:30]} Qf8 {[%emt 0:00:30]} 35. Qe3 {[%emt 0:00:30]} Qb8 {[%emt 0:00:30]} 36. Rfa1 {[%emt 0:00:30]} Ree8 {[%emt 0:00:30]} 37. Qf3 {[%emt 0:00:30]} Re6 {[%emt 0:00:30]} 38. Ne3 {[%emt 0:00:30]} Qf8 {[%emt 0:00:30] [%clk 0:34]} 39. Nhf5 {[%emt 0:00:00]} a5 {[%emt 0:00:00]} 40. Rb1 {[%emt 0:00:00]} Bc7 {[%emt 0:03:59]} 41. h4 {[%emt 0:05:59]} Bd8 {[%emt 0:03:30]} 42. Kg1 {[%emt 0:01:30]} Bxf5 {[%emt 0:00:30]} 43. Nxf5 {[%emt 0:01:30]} Rg6 {[%emt 0:01:30]} 44. Re1 {[%emt 0:01:30]} Re8 {[%emt 0:02:30]} 45. Re3 {[%emt 0:01:30]} Re6 {[%emt 0:00:30]} 46. Qh3 {[%emt 0:01:30]} Bc7 {[%emt 0:02:30]} 47. Rf3 {[%emt 0:00:30]} Qb8 {[%emt 0:01:30]} 48. h5 {[%emt 0:12:39]} Rg5 {[%emt 0:04:30]} 49. h6 {[%emt 0:04:46]} Qxb3 {[%emt 0:03:43]} 50. Ng7 {[%emt 0:03:25]} Qxa2 {[%emt 0:08:00]} 51. Nxe6 {[%emt 0:00:30]} fxe6 {[%emt 0:00:08]} 52. Qxe6 {[%emt 0:00:28]} Qb1+ {[%emt 0:00:41]} 53. Kh2 {[%emt 0:00:04]} Bd8 {[%emt 0:00:26]} 54. Rxf6 {[%emt 0:02:39]} Rh5+ {[%emt 0:04:00]} 55. Kg3 {[%emt 0:00:30]} Rg5+ {[%emt 0:00:00]} 56. Kh2 {[%emt 0:00:02]} Rh5+ {[%emt 0:01:15]} 57. Kg3 {[%emt 0:00:02]} Rg5+ {[%emt 0:00:53]} 1/2-1/2

[Event "Turkey IS Bank Super League 2017"]
[Site "Darica-Kocaeli"]
[Date "2017.07.26"]
[Round "1.31"]
[White "Yilmaz, Goktan"]
[Black "Bozbey, Ali"]
[Result "1/2-1/2"]
[ECO "B09"]
[WhiteElo "2202"]
[BlackElo "2139"]
[Annotator "NA"]
[PlyCount "80"]
[EventType "team-tourn"]
[EventCountry "TUR"]
[SourceTitle "playchess.com"]
[Source "ChessBase"]
[SourceQuality "1"]
[TimeControl "40/5400+30:1800+30"]

1. e4 {[%emt 0:00:30] 3.]9} d6 {[%emt 0:01:00] 3.]9} 2. d4 {[%emt 0:00:30] 3.]9} Nf6 {[%emt 0:00:30] 3.9} 3. Nc3 {[%emt 0:00:30] 3..9} g6 {[%emt 0:00:30] 3..9} 4. f4 {[%emt 0:00:30] 3..9} Bg7 {[%emt 0:00:30] 3..} 5. Nf3 {[%emt 0:00:30] 33.} O-O {[%emt 0:00:30] 33.} 6. Be3 {[%emt 0:00:00] 33} c5 {[%emt 0:06:30] 333} 7. dxc5 {[%emt 0:06:00] 333} Qa5 {[%emt 0:00:30] 333} 8. Qd2 {[%emt 0:16:30] 333} dxc5 {[%emt 0:04:30] 333} 9. e5 {[%emt 0:04:30] 333} Rd8 {[%emt 0:05:30] 333} 10. Bd3 {[%emt 0:07:30] 333} c4 {[%emt 0:10:30] 333} 11. exf6 {[%emt 0:02:30] 333} Bxf6 {[%emt 0:00:30] 333} 12. Ne4 {[%emt 0:22:30] 333} Qxd2+ {[%emt 0:00:30] 333} 13. Bxd2 {[%emt 0:00:30] 333} cxd3 {[%emt 0:01:30] 333} 14. Nxf6+ {[%emt 0:00:30] 333} exf6 {[%emt 0:00:00] 33} 15. c4 {[%emt 0:07:30] ]33} Be6 {[%emt 0:03:00] ]33} 16. b3 {[%emt 0:00:30] ]33} Na6 {[%emt 0:05:30] ]33} 17. Bc3 {[%emt 0:01:30] ]33} Kg7 {[%emt 0:00:30] ]33} 18. O-O-O {[%emt 0:05:30] ]3} Nc5 {[%emt 0:08:30] ]]} 19. Bd4 {[%emt 0:01:30] ]]} Rac8 {[%emt 0:01:30] ]]} 20. Kb2 {[%emt 0:05:01] ]][} Bg4 {[%emt 0:02:30] 29]][} 21. Bxc5 {[%emt 0:06:29] ]][} Rxc5 {[%emt 0:00:00] ]]]][} 22. Kc3 {[%emt 0:00:41] ]][} Bxf3 {[%emt 0:01:00] 9]]][} 23. gxf3 {[%emt 0:00:02] ]][} Rf5 {[%emt 0:00:30] 4]]]} 24. Rxd3 {[%emt 0:00:30] ]]} Rxd3+ {[%emt 0:00:00] ]]]]} 25. Kxd3 {[%emt 0:00:53] ]]} Rxf4 {[%emt 0:00:00] 4]]]} 26. Ke3 {[%emt 0:02:27] ]]} Rh4 {[%emt 0:00:30] 7]]} 27. c5 {[%emt 0:02:42] ]} Kf8 {[%emt 0:03:30] 5 [%clk 0:37:0] ]14} 28. Rd1 {[%emt 0:01:05] lckl} Ke7 {[%emt 0:07:30] 40} 29. Rd2 {[%emt 0:00:30]} h6 {[%emt 0:00:30] ]]} 30. a3 {[%emt 0:00:30]} a5 {[%emt 0:00:30] 0]} 31. Rd6 {[%emt 0:00:49] ]} Rxh2 {[%emt 0:16:30] 1]]} 32. Rb6 {[%emt 0:00:30]} Kd7 {[%emt 0:00:00] 11]} 33. b4 {[%emt 0:00:49] ]} Ra2 {[%emt 0:01:00] 0]]} 34. Rxb7+ {[%emt 0:02:34] ]} Kc8 {[%emt 0:01:30] ] [%clk 0:17:21] ]} 35. c6 {[%emt 0:01:14] l%k} Rxa3+ {[%emt 0:03:09] ]} 36. Kd4 {[%emt 0:00:30] ]} Ra4 {[%emt 0:00:30] [%clk 0:48]} 37. Kc5 {[%emt 0:00:00] 1} Rxb4 {[%emt 0:00:00] 1} 38. Rxf7 {[%emt 0:00:00]} Rf4 {[%emt 0:00:00]} 39. Kb6 {[%emt 0:00:00]} Rb4+ {[%emt 0:00:00]} 40. Kc5 {[%emt 0:00:00]} Rf4 {[%emt 0:01:21] [%clk 0:48]} 1/2-1/2